fUSD/lending_fUSD_20250519
["ID","MTS","AMOUNT","RATE_DAILY","PERIOD"]
[361590485,1747627837990,-180.71039253,0.00013698,2]
[361590486,1747627838000,-400.0,0.00013698,2]
[361590487,1747627838010,-401.84657551,0.00013698,2]
[361590488,1747627838019,-400.0,0.00013698,2]
[361590489,1747627838029,-400.0,0.00013698,2]
[361590490,1747627838039,-400.0,0.00013698,2]
[361590491,1747627838049,-404.9063885,0.00013698,2]
[361590492,1747627838058,-400.0,0.00013698,2]
[361590493,1747627838068,-400.0,0.00013698,2]
[361590494,1747627838078,-403.04689367,0.00013698,2]
[361590495,1747627838089,-408.35801182,0.00013698,2]
[361590496,1747627838099,-344.49420342,0.00013698,2]
[361590497,1747627838108,-400.0,0.00013698,2]
[361590498,1747627838118,-400.0,0.00013698,2]
[361590499,1747627838128,-500.0,0.00013698,2]
[361590500,1747627838138,-500.0,0.00013698,2]
[361590501,1747627838148,-400.0,0.00013698,2]
[361590502,1747627838159,-400.0,0.00013698,2]
[361590503,1747627838168,-400.0,0.00013698,2]
[361590504,1747627838177,-195.81042433,0.00013698,2]
[361590505,1747627838191,-204.18957567,0.00013698,2]
[361590506,1747627838200,-505.14195804,0.00013698,2]
[361590507,1747627838209,-400.0,0.00013698,2]
[361590508,1747627838218,-400.0,0.00013698,2]
[361590509,1747627838227,-402.19284757,0.00013698,2]
[361590510,1747627838236,-400.0,0.00013698,2]
[361590511,1747627838245,-400.0,0.00013698,2]
[361590512,1747627838254,-400.0,0.00013698,2]
[361590513,1747627838264,-500.0,0.00013698,2]
[361590514,1747627838273,-243.2090618,0.00013698,2]
[361590515,1747627838283,-504.21,0.00013698,2]
[361590516,1747627838292,-402.27980095,0.00013698,2]
[361590517,1747627838302,-368.11762588,0.00013698,2]
[361590518,1747627838311,-400.0,0.00013698,2]
[361590519,1747627838320,-400.0,0.00013698,2]
[361590520,1747627838329,-400.0,0.00013698,2]
[361590521,1747627838338,-405.67533314,0.00013698,2]
[361590522,1747627838347,-400.0,0.00013698,2]
[361590523,1747627838356,-400.64276419,0.00013698,2]
[361590524,1747627838365,-500.0,0.00013698,2]
[361590525,1747627838374,-374.54,0.00013698,2]
[361590526,1747627838383,-400.0,0.00013698,2]
[361590527,1747627838393,-400.0,0.00013698,2]
[361590528,1747627838402,-400.0,0.00013698,2]
[361590529,1747627838670,-400.0,0.00013698,2]
[361590530,1747627838692,-400.0,0.00013698,2]
[361590531,1747627838701,-448.85,0.00013698,2]
[361590532,1747627838710,-406.24688466,0.00013698,2]
[361590533,1747627838719,-631.19,0.00013698,2]
[361590534,1747627838731,-400.0,0.00013698,2]
[361590535,1747627838743,-400.0,0.00013698,2]
[361590536,1747627838754,-400.0,0.00013698,2]
[361590537,1747627838763,-600.52,0.00013698,2]
[361590538,1747627838774,-400.0,0.00013698,2]
[361590539,1747627838788,-400.0,0.00013698,2]
[361590540,1747627838799,-900.28,0.00013698,2]
[361590541,1747627838809,-489.91,0.00013698,2]
[361590542,1747627838818,-400.0,0.00013698,2]
[361590543,1747627839035,-400.0,0.00013698,2]
[361590544,1747627839044,-402.12069124,0.00013698,2]
[361590545,1747627839053,-500.0,0.00013698,2]
[361590546,1747627839062,-500.0,0.00013698,2]
[361590547,1747627839071,-400.0,0.00013698,2]
[361590548,1747627839080,-206.76455136,0.00013698,2]
[361590549,1747627839089,-405.99866355,0.00013698,2]
[361590550,1747627839098,-406.72158096,0.00013698,2]
[361590551,1747627839107,-693.22,0.00013698,2]
[361590552,1747627839117,-400.0,0.00013698,2]
[361590553,1747627839126,-326.85586927,0.00013698,2]
[361590554,1747627839135,-408.24994068,0.00013698,2]
[361590555,1747627839143,-407.28262984,0.00013698,2]
[361590556,1747627839153,-403.87684107,0.00013698,2]
[361590557,1747627839162,-402.78726488,0.00013698,2]
[361590558,1747627839171,-400.0,0.00013698,2]
[361590559,1747627839180,-406.24203093,0.00013698,2]
[361590560,1747627839189,-400.0,0.00013698,2]
[361590561,1747627839198,-221.78189301,0.00013698,2]
[361590562,1747627839207,-400.0,0.00013698,2]
[361590563,1747627839216,-400.0,0.00013698,2]
[361590564,1747627839225,-400.0,0.00013698,2]
[361590565,1747627839235,-400.0,0.00013698,2]
[361590566,1747627839244,-400.0,0.00013698,2]
[361590567,1747627839253,-400.0,0.00013698,2]
[361590568,1747627839263,-412.78610341,0.00013698,2]
[361590569,1747627839273,-400.0,0.00013698,2]
[361590570,1747627839282,-400.0,0.00013698,2]
[361590571,1747627839292,-400.0,0.00013698,2]
[361590572,1747627839301,-502.35,0.00013698,2]
[361590573,1747627839310,-400.0,0.00013698,2]
[361590574,1747627839320,-400.0,0.00013698,2]
[361590575,1747627839329,-400.0,0.00013698,2]
[361590576,1747627839338,-400.0,0.00013698,2]
[361590577,1747627839347,-400.0,0.00013698,2]
[361590578,1747627839356,-400.0,0.00013698,2]
[361590579,1747627839365,-400.0,0.00013698,2]
[361590580,1747627839375,-401.35850257,0.00013698,2]
[361590581,1747627839384,-400.0,0.00013698,2]
[361590582,1747627839393,-400.0,0.00013698,2]
[361590583,1747627839403,-517.17280202,0.00013698,2]
[361590584,1747627839412,-400.0,0.00013698,2]
[361590585,1747627839422,-400.0,0.00013698,2]
[361590586,1747627839431,-400.6073637,0.00013698,2]
[361590587,1747627839440,-400.0,0.00013698,2]
[361590588,1747627839450,-400.0,0.00013698,2]
[361590589,1747627839459,-401.89819205,0.00013698,2]
[361590590,1747627839469,-400.0,0.00013698,2]
[361590591,1747627839478,-400.0,0.00013698,2]
[361590592,1747627839488,-400.8313982,0.00013698,2]
[361590593,1747627839497,-400.0,0.00013698,2]
[361590594,1747627839507,-400.0,0.00013698,2]
[361590595,1747627839516,-400.0,0.00013698,2]
[361590596,1747627839526,-400.0,0.00013698,2]
[361590597,1747627839535,-400.94816346,0.00013698,2]
[361590598,1747627839544,-400.0,0.00013698,2]
[361590599,1747627839554,-400.0,0.00013698,2]
[361590600,1747627839563,-400.0,0.00013698,2]
[361590602,1747627839572,-401.83753475,0.00013698,2]
[361590603,1747627839581,-400.0,0.00013698,2]
[361590604,1747627839591,-400.0,0.00013698,2]
[361590605,1747627839600,-400.0,0.00013698,2]
[361590606,1747627839609,-400.0,0.00013698,2]
[361590607,1747627839619,-406.15629785,0.00013698,2]
[361590608,1747627839628,-369.84729929,0.00013698,2]
[361590609,1747627839638,-400.0,0.00013698,2]
[361590610,1747627839648,-406.45,0.00013698,2]
[361590611,1747627839659,-403.29285829,0.00013698,2]
[361590613,1747627839668,-859.36,0.00013698,2]
[361590615,1747627839677,-400.0,0.00013698,2]
[361590617,1747627839686,-439.82,0.00013698,2]
[361590619,1747627839695,-890.04,0.00013698,2]
[361590621,1747627839704,-400.0,0.00013698,2]
[361590622,1747627839713,-449.79,0.00013698,2]
[361590623,1747627839722,-400.0,0.00013698,2]
[361590624,1747627839733,-707.55,0.00013698,2]
[361590625,1747627839742,-488.32,0.00013698,2]
[361590626,1747627839752,-451.18647231,0.00013698,2]
[361590627,1747627839762,-400.0,0.00013698,2]
[361590628,1747627839772,-400.0,0.00013698,2]
[361590629,1747627839783,-234.13750042,0.00013698,2]
[361590630,1747627839793,-400.0,0.00013698,2]
[361590631,1747627839805,-400.0,0.00013698,2]
[361590632,1747627839817,-400.0,0.00013698,2]
[361590633,1747627839826,-824.3,0.00013698,2]
[361590634,1747627839835,-400.0,0.00013698,2]
[361590635,1747627839844,-400.0,0.00013698,2]
[361590636,1747627839856,-400.0,0.00013698,2]
[361590637,1747627839865,-832.56,0.00013698,2]
[361590638,1747627839875,-388.91740413,0.00013698,2]
[361590639,1747627839884,-550.53,0.00013698,2]
[361590640,1747627839893,-400.0,0.00013698,2]
[361590641,1747627839902,-400.0,0.00013698,2]
[361590642,1747627839914,-400.0,0.00013698,2]
[361590643,1747627839923,-405.66991185,0.00013698,2]
[361590644,1747627839932,-715.63,0.00013698,2]
[361590645,1747627839942,-400.0,0.00013698,2]
[361590646,1747627839951,-419.3,0.00013698,2]
[361590647,1747627839968,-400.0,0.00013698,2]
[361590648,1747627839978,-400.0,0.00013698,2]
[361590649,1747627839989,-995.24,0.00013698,2]
[361590650,1747627839999,-400.0,0.00013698,2]
[361590651,1747627840009,-400.0,0.00013698,2]
[361590652,1747627840019,-538.98953608,0.00013698,2]
[361590653,1747627840029,-400.0,0.00013698,2]
[361590654,1747627840040,-401.07120763,0.00013698,2]
[361590655,1747627840051,-400.0,0.00013698,2]
[361590656,1747627840061,-400.0,0.00013698,2]
[361590657,1747627840070,-400.0,0.00013698,2]
[361590658,1747627840080,-400.0,0.00013698,2]
[361590659,1747627840089,-400.0,0.00013698,2]
[361590660,1747627840099,-400.0,0.00013698,2]
[361590661,1747627840108,-400.0,0.00013698,2]
[361590662,1747627840117,-400.0,0.00013698,2]
[361590663,1747627840127,-400.53373836,0.00013698,2]
[361590664,1747627840135,-400.0,0.00013698,2]
[361590665,1747627840145,-493.55,0.00013698,2]
[361590666,1747627840155,-400.7693857,0.00013698,2]
[361590667,1747627840168,-400.0,0.00013698,2]
[361590668,1747627840177,-400.0,0.00013698,2]
[361590669,1747627840187,-400.0,0.00013698,2]
[361590670,1747627840196,-522.48,0.00013698,2]
[361590671,1747627840205,-808.13,0.00013698,2]
[361590672,1747627840215,-400.0,0.00013698,2]
[361590673,1747627840224,-400.65762664,0.00013698,2]
[361590674,1747627840234,-400.0,0.00013698,2]
[361590675,1747627840243,-400.0,0.00013698,2]
[361590676,1747627840252,-400.0,0.00013698,2]
[361590677,1747627840261,-408.15588559,0.00013698,2]
[361590678,1747627840270,-544.95399197,0.00013698,2]
[361590679,1747627840279,-504.39,0.00013698,2]
[361590680,1747627840289,-400.0,0.00013698,2]
[361590681,1747627840299,-285.33315817,0.00013698,2]
[361590682,1747627840308,-400.0,0.00013698,2]
[361590683,1747627840317,-400.0,0.00013698,2]
[361590684,1747627840326,-584.43,0.00013698,2]
[361590685,1747627840336,-400.0,0.00013698,2]
[361590686,1747627840345,-359.97134497,0.00013698,2]
[361590687,1747627840355,-400.0,0.00013698,2]
[361590688,1747627840364,-400.0,0.00013698,2]
[361590689,1747627840373,-500.77,0.00013698,2]
[361590690,1747627840383,-400.0,0.00013698,2]
[361590691,1747627840393,-400.0,0.00013698,2]
[361590692,1747627840402,-400.0,0.00013698,2]
[361590693,1747627840415,-629.75,0.00013698,2]
[361590694,1747627840424,-400.0,0.00013698,2]
[361590695,1747627840433,-715.21,0.00013698,2]
[361590696,1747627840443,-400.0,0.00013698,2]
[361590697,1747627840452,-795.98,0.00013698,2]
[361590698,1747627840461,-400.0,0.00013698,2]
[361590699,1747627840470,-400.0,0.00013698,2]
[361590700,1747627840479,-402.15318513,0.00013698,2]
[361590701,1747627840488,-430.0,0.00013698,2]
[361590702,1747627840497,-400.0,0.00013698,2]
[361590703,1747627840507,-400.0,0.00013698,2]
[361590704,1747627840515,-630.4,0.00013698,2]
[361590705,1747627840524,-400.0,0.00013698,2]
[361590706,1747627840533,-400.0,0.00013698,2]
[361590707,1747627840542,-400.0,0.00013698,2]
[361590708,1747627840551,-515.85,0.00013698,2]
[361590709,1747627840560,-400.0,0.00013698,2]
[361590711,1747627840569,-400.0,0.00013698,2]
[361590712,1747627840578,-1012.21,0.00013698,2]
[361590713,1747627840587,-400.0,0.00013698,2]
[361590714,1747627840596,-400.0,0.00013698,2]
[361590715,1747627840606,-400.0,0.00013698,2]
[361590716,1747627840615,-722.37,0.00013698,2]
[361590718,1747627840623,-410.01,0.00013698,2]
[361590720,1747627840632,-400.0,0.00013698,2]
[361590721,1747627840641,-401.29965814,0.00013698,2]
[361590722,1747627840651,-9.71236612,0.00013698,2]
[361590723,1747627841121,-390.28763388,0.00013698,2]
[361590724,1747627841131,-400.0,0.00013698,2]
[361590725,1747627841141,-418.77,0.00013698,2]
[361590726,1747627841151,-400.0,0.00013698,2]
[361590727,1747627841162,-400.0,0.00013698,2]
[361590728,1747627841171,-475.48,0.00013698,2]
[361590729,1747627841180,-400.0,0.00013698,2]
[361590730,1747627841189,-99.39438098,0.00013698,2]
[361590731,1747627841201,-300.60561902,0.00013698,2]
[361590732,1747627841211,-215.64438098,0.00013698,2]
[361590733,1747627841242,-685.20688445,0.00013698,2]
[361590734,1747627841254,-320.38873457,0.00013698,2]
[361590735,1747627841263,-400.0,0.00013698,2]
[361590736,1747627841271,-400.0,0.00013698,2]
[361590737,1747627841281,-400.0,0.00013698,2]
[361590738,1747627841290,-400.0,0.00013698,2]
[361590739,1747627841301,-400.0,0.00013698,2]
[361590740,1747627841310,-740.59,0.00013698,2]
[361590741,1747627841319,-485.66,0.00013698,2]
[361590742,1747627841330,-400.53142825,0.00013698,2]
[361590743,1747627841340,-400.0,0.00013698,2]
[361590744,1747627841349,-435.18,0.00013698,2]
[361590745,1747627841358,-531.76,0.00013698,2]
[361590746,1747627841367,-400.0,0.00013698,2]
[361590747,1747627841376,-400.0,0.00013698,2]
[361590748,1747627841385,-400.0,0.00013698,2]
[361590749,1747627841394,-400.0,0.00013698,2]
[361590750,1747627841405,-400.0,0.00013698,2]
[361590751,1747627841415,-400.0,0.00013698,2]
[361590752,1747627841424,-400.0,0.00013698,2]
[361590753,1747627841433,-819.93,0.00013698,2]
[361590754,1747627841443,-400.0,0.00013698,2]
[361590755,1747627841452,-400.0,0.00013698,2]
[361590756,1747627841461,-400.0,0.00013698,2]
[361590757,1747627841470,-400.0,0.00013698,2]
[361590758,1747627841479,-441.59,0.00013698,2]
[361590759,1747627841488,-400.0,0.00013698,2]
[361590760,1747627841497,-444.29,0.00013698,2]
[361590761,1747627841506,-400.0,0.00013698,2]
[361590762,1747627841515,-400.0,0.00013698,2]
[361590763,1747627841525,-400.0,0.00013698,2]
[361590764,1747627841534,-804.79,0.00013698,2]
[361590765,1747627841543,-435.66,0.00013698,2]
[361590766,1747627841552,-400.0,0.00013698,2]
[361590767,1747627841560,-377.28314448,0.00013698,2]
[361590768,1747627841569,-400.0,0.00013698,2]
[361590769,1747627841578,-400.0,0.00013698,2]
[361590770,1747627841587,-496.35,0.00013698,2]
[361590771,1747627841596,-400.0,0.00013698,2]
[361590772,1747627841605,-675.81,0.00013698,2]
[361590773,1747627841614,-400.0,0.00013698,2]
[361590774,1747627841623,-400.0,0.00013698,2]
[361590775,1747627841632,-400.0,0.00013698,2]
[361590776,1747627841641,-250.0,0.00013698,2]
[361590777,1747627841650,-400.0,0.00013698,2]
[361590778,1747627841663,-997.42,0.00013698,2]
[361590779,1747627841672,-400.7666927,0.00013698,2]
[361590781,1747627842485,-34.9733073,0.00013698,2]
[361590782,1747627842495,-400.0,0.00013698,2]
[361590783,1747627842505,-399.02823411,0.00013698,2]
[361590784,1747627842519,-0.97176589,0.00013698,2]
[361590786,1747627842528,-400.0,0.00013698,2]
[361590788,1747627842537,-625.64,0.00013698,2]
[361590789,1747627842546,-400.0,0.00013698,2]
[361590790,1747627842555,-400.0,0.00013698,2]
[361590792,1747627842565,-400.0,0.00013698,2]
[361590794,1747627842574,-400.0,0.00013698,2]
[361590796,1747627842583,-400.0,0.00013698,2]
[361590797,1747627842593,-400.0,0.00013698,2]
[361590798,1747627842602,-697.59,0.00013698,2]
[361590799,1747627842611,-496.07,0.00013698,2]
[361590800,1747627842620,-400.0,0.00013698,2]
[361590801,1747627842630,-634.93,0.00013698,2]
[361590802,1747627842639,-742.91,0.00013698,2]
[361590803,1747627842649,-400.0,0.00013698,2]
[361590804,1747627842658,-400.0,0.00013698,2]
[361590805,1747627842667,-546.58406269,0.00013698,2]
[361590806,1747627842677,-400.0,0.00013698,2]
[361590807,1747627842686,-400.0,0.00013698,2]
[361590808,1747627842695,-400.0,0.00013698,2]
[361590809,1747627842704,-400.0,0.00013698,2]
[361590810,1747627842713,-614.67,0.00013698,2]
[361590811,1747627842723,-400.0,0.00013698,2]
[361590812,1747627842732,-400.0,0.00013698,2]
[361590813,1747627842741,-985.14,0.00013698,2]
[361590814,1747627842750,-400.0,0.00013698,2]
[361590815,1747627842759,-472.86,0.00013698,2]
[361590816,1747627842769,-400.0,0.00013698,2]
[361590817,1747627842777,-384.13323541,0.00013698,2]
[361590818,1747627842787,-400.0,0.00013698,2]
[361590819,1747627842798,-400.0,0.00013698,2]
[361590820,1747627842807,-400.0,0.00013698,2]
[361590821,1747627842816,-400.0,0.00013698,2]
[361590822,1747627842825,-400.0,0.00013698,2]
[361590823,1747627842834,-400.0,0.00013698,2]
[361590825,1747627842844,-400.0,0.00013698,2]
[361590827,1747627842853,-406.0307666,0.00013698,2]
[361590829,1747627842863,-500.0,0.00013698,2]
[361590831,1747627842872,-500.0,0.00013698,2]
[361590833,1747627842880,-400.0,0.00013698,2]
[361590835,1747627842890,-500.0,0.00013698,2]
[361590836,1747627842899,-500.0,0.00013698,2]
[361590837,1747627842909,-352.90578983,0.00013698,2]
[361590838,1747627842918,-400.0,0.00013698,2]
[361590839,1747627842927,-400.0,0.00013698,2]
[361590840,1747627842936,-428.04,0.00013698,2]
[361590841,1747627842947,-400.0,0.00013698,2]
[361590842,1747627842957,-1323.49,0.00013698,2]
[361590843,1747627842967,-400.0,0.00013698,2]
[361590844,1747627842976,-402.62434834,0.00013698,2]
[361590845,1747627842985,-400.0,0.00013698,2]
[361590846,1747627842994,-400.0,0.00013698,2]
[361590847,1747627843005,-400.0,0.00013698,2]
[361590848,1747627843014,-348.26393541,0.00013698,2]
[361590849,1747627843023,-1077.1,0.00013698,2]
[361590850,1747627843034,-400.0,0.00013698,2]
[361590852,1747627843044,-650.82,0.00013698,2]
[361590854,1747627843054,-400.0,0.00013698,2]
[361590856,1747627843063,-400.0,0.00013698,2]
[361590858,1747627843073,-400.0,0.00013698,2]
[361590860,1747627843081,-400.0,0.00013698,2]
[361590862,1747627843090,-400.0,0.00013698,2]
[361590864,1747627843100,-400.0,0.00013698,2]
[361590866,1747627843109,-400.0,0.00013698,2]
[361590868,1747627843117,-400.0,0.00013698,2]
[361590870,1747627843126,-720.26,0.00013698,2]
[361590872,1747627843135,-1066.78,0.00013698,2]
[361590874,1747627843144,-400.0,0.00013698,2]
[361590876,1747627843153,-399.11930883,0.00013698,2]
[361590878,1747627843164,-957.01,0.00013698,2]
[361590880,1747627843174,-400.0,0.00013698,2]
[361590882,1747627843183,-400.0,0.00013698,2]
[361590884,1747627843192,-400.0,0.00013698,2]
[361590886,1747627843201,-878.32,0.00013698,2]
[361590888,1747627843211,-400.0,0.00013698,2]
[361590890,1747627843220,-193.23648156,0.00013698,2]
[361590892,1747627843229,-400.0,0.00013698,2]
[361590894,1747627843238,-409.15142023,0.00013698,2]
[361590896,1747627843247,-400.0,0.00013698,2]
[361590898,1747627843256,-400.0,0.00013698,2]
[361590900,1747627843265,-400.0,0.00013698,2]
[361590902,1747627843275,-400.0,0.00013698,2]
[361590904,1747627843284,-423.27,0.00013698,2]
[361590906,1747627843294,-494.99,0.00013698,2]
[361590908,1747627843303,-496.79,0.00013698,2]
[361590910,1747627843312,-400.0,0.00013698,2]
[361590912,1747627843322,-400.0,0.00013698,2]
[361590914,1747627843331,-400.0,0.00013698,2]
[361590916,1747627843341,-1168.58,0.00013698,2]
[361590918,1747627843350,-400.0,0.00013698,2]
[361590920,1747627843359,-400.0,0.00013698,2]
[361590922,1747627843368,-431.88,0.00013698,2]
[361590924,1747627843377,-400.0,0.00013698,2]
[361590926,1747627843387,-400.0,0.00013698,2]
[361590928,1747627843396,-400.53237311,0.00013698,2]
[361590930,1747627843406,-400.0,0.00013698,2]
[361590932,1747627843417,-400.0,0.00013698,2]
[361590934,1747627843428,-1862.49,0.00013698,2]
[361590936,1747627843438,-400.0,0.00013698,2]
[361590938,1747627843448,-527.11,0.00013698,2]
[361590940,1747627843458,-400.0,0.00013698,2]
[361590942,1747627843467,-400.0,0.00013698,2]
[361590944,1747627843479,-400.0,0.00013698,2]
[361590946,1747627843488,-409.68492825,0.00013698,2]
[361590948,1747627843498,-400.0,0.00013698,2]
[361590950,1747627843507,-465.88,0.00013698,2]
[361590952,1747627843518,-400.0,0.00013698,2]
[361590954,1747627843527,-400.0,0.00013698,2]
[361590956,1747627843536,-400.0,0.00013698,2]
[361590958,1747627843546,-400.0,0.00013698,2]
[361590960,1747627843555,-400.0,0.00013698,2]
[361590962,1747627843565,-400.0,0.00013698,2]
[361590964,1747627843574,-636.41,0.00013698,2]
[361590966,1747627843584,-400.0,0.00013698,2]
[361590968,1747627843594,-400.34836304,0.00013698,2]
[361590970,1747627843603,-1127.49,0.00013698,2]
[361590972,1747627843612,-400.39106701,0.00013698,2]
[361590974,1747627843621,-417.16,0.00013698,2]
[361590976,1747627843632,-400.0,0.00013698,2]
[361590978,1747627843640,-400.0,0.00013698,2]
[361590980,1747627843649,-401.76,0.00013698,2]
[361590982,1747627843659,-1374.01,0.00013698,2]
[361590984,1747627843668,-400.0,0.00013698,2]
[361590986,1747627843677,-400.0,0.00013698,2]
[361590988,1747627843686,-400.0,0.00013698,2]
[361590990,1747627843695,-400.0,0.00013698,2]
[361590992,1747627843704,-522.91,0.00013698,2]
[361590994,1747627843713,-400.0,0.00013698,2]
[361590996,1747627843724,-400.0,0.00013698,2]
[361590998,1747627843733,-400.0,0.00013698,2]
[361591000,1747627843742,-400.0,0.00013698,2]
[361591002,1747627843751,-872.88,0.00013698,2]
[361591004,1747627843761,-400.0,0.00013698,2]
[361591005,1747627843770,-400.0,0.00013698,2]
[361591007,1747627843779,-400.0,0.00013698,2]
[361591009,1747627843789,-402.62129474,0.00013698,2]
[361591011,1747627843801,-400.0,0.00013698,2]
[361591013,1747627843810,-406.65815389,0.00013698,2]
[361591014,1747627843819,-999.84,0.00013698,2]
[361591016,1747627843829,-400.0,0.00013698,2]
[361591018,1747627843841,-585.1,0.00013698,2]
[361591021,1747627843851,-531.1176057,0.00013698,2]
[361591022,1747627843859,-400.0,0.00013698,2]
[361591024,1747627843871,-400.0,0.00013698,2]
[361591026,1747627843881,-400.0,0.00013698,2]
[361591028,1747627843890,-400.0,0.00013698,2]
[361591030,1747627843900,-933.11,0.00013698,2]
[361591032,1747627843910,-890.06,0.00013698,2]
[361591034,1747627843919,-462.98,0.00013698,2]
[361591036,1747627843928,-400.0,0.00013698,2]
[361591038,1747627843937,-400.0,0.00013698,2]
[361591040,1747627843946,-582.71,0.00013698,2]
[361591042,1747627843956,-400.0,0.00013698,2]
[361591044,1747627843967,-400.0,0.00013698,2]
[361591046,1747627843977,-893.4,0.00013698,2]
[361591048,1747627843986,-401.7282,0.00013698,2]
[361591050,1747627843995,-504.88308893,0.00013698,2]
[361591052,1747627844004,-400.0,0.00013698,2]
[361591054,1747627844015,-415.62422563,0.00013698,2]
[361591056,1747627844025,-400.0,0.00013698,2]
[361591058,1747627844034,-401.07433648,0.00013698,2]
[361591060,1747627844044,-400.0,0.00013698,2]
[361591062,1747627844053,-500.0,0.00013698,2]
[361591064,1747627844062,-400.0,0.00013698,2]
[361591066,1747627844071,-400.0,0.00013698,2]
[361591068,1747627844080,-400.0,0.00013698,2]
[361591070,1747627844089,-1289.08,0.00013698,2]
[361591072,1747627844097,-400.0,0.00013698,2]
[361591074,1747627844108,-400.0,0.00013698,2]
[361591076,1747627844116,-400.0,0.00013698,2]
[361591078,1747627844125,-400.0,0.00013698,2]
[361591080,1747627844134,-403.02814561,0.00013698,2]
[361591082,1747627844144,-400.0,0.00013698,2]
[361591084,1747627844153,-400.0,0.00013698,2]
[361591086,1747627844163,-400.0,0.00013698,2]
[361591088,1747627844172,-400.0,0.00013698,2]
[361591090,1747627844183,-400.0,0.00013698,2]
[361591092,1747627844191,-535.39,0.00013698,2]
[361591094,1747627844200,-400.0,0.00013698,2]
[361591095,1747627844209,-400.0,0.00013698,2]
[361591097,1747627844218,-693.26,0.00013698,2]
[361591099,1747627844227,-500.0,0.00013698,2]
[361591101,1747627844237,-400.0,0.00013698,2]
[361591103,1747627844246,-400.0,0.00013698,2]
[361591105,1747627844255,-1021.13,0.00013698,2]
[361591107,1747627844264,-400.0,0.00013698,2]
[361591109,1747627844273,-411.50393126,0.00013698,2]
[361591111,1747627844282,-538.75,0.00013698,2]
[361591113,1747627844292,-500.0,0.00013698,2]
[361591115,1747627844301,-510.47468195,0.00013698,2]
[361591117,1747627844310,-400.0,0.00013698,2]
[361591119,1747627844319,-400.0,0.00013698,2]
[361591121,1747627844328,-859.17,0.00013698,2]
[361591123,1747627844337,-400.0,0.00013698,2]
[361591125,1747627844346,-400.0,0.00013698,2]
[361591127,1747627844355,-400.56212363,0.00013698,2]
[361591129,1747627844364,-400.0,0.00013698,2]
[361591130,1747627844373,-400.45,0.00013698,2]
[361591132,1747627844383,-400.0,0.00013698,2]
[361591134,1747627844392,-400.0,0.00013698,2]
[361591136,1747627844401,-400.0,0.00013698,2]
[361591138,1747627844412,-828.25,0.00013698,2]
[361591140,1747627844422,-400.0,0.00013698,2]
[361591142,1747627844431,-400.0,0.00013698,2]
[361591144,1747627844440,-400.0,0.00013698,2]
[361591146,1747627844449,-400.0,0.00013698,2]
[361591147,1747627844458,-400.0,0.00013698,2]
[361591149,1747627844467,-250.76352385,0.00013698,2]
[361591151,1747627844476,-425.66,0.00013698,2]
[361591153,1747627844485,-767.56,0.00013698,2]
[361591155,1747627844495,-400.0,0.00013698,2]